[Event "Championnat d'Europe Rapide"]
[Date "2024.12.07"]
[White "Deac, Bogdan-Daniel"]
[Black "Maltsevskaya, Aleksandra"]
[WhiteElo "2696"]
[BlackElo "2368"]
[Round "2.6"]
[Result "1-0"]
[TimeControl "900+10"]

1. Nf3 {[%emt 00:00:02] [%clk 00:15:17]} Nf6 {[%emt 00:00:02] [%clk 00:15:18]}
2. c4 {[%emt 00:00:03] [%clk 00:15:25]} e6 {[%emt 00:00:07] [%clk 00:15:21]} 3.
g3 {[%emt 00:00:03] [%clk 00:15:31]} b6 {[%emt 00:00:05] [%clk 00:15:26]} 4. Bg2
{[%emt 00:00:15] [%clk 00:15:25]} Bb7 {[%emt 00:00:03] [%clk 00:15:34]} 5. b3
{[%emt 00:00:02] [%clk 00:15:33]} Be7 {[%emt 00:00:06] [%clk 00:15:39]} 6. Bb2
{[%emt 00:00:02] [%clk 00:15:41]} O-O {[%emt 00:00:03] [%clk 00:15:46]} 7. O-O
{[%emt 00:00:14] [%clk 00:15:37]} c5 {[%emt 00:00:20] [%clk 00:15:36]} 8. e3
{[%emt 00:00:04] [%clk 00:15:43]} d5 {[%emt 00:00:22] [%clk 00:15:24]} 9. Nc3
{[%emt 00:00:21] [%clk 00:15:32]} dxc4 {[%emt 00:00:04] [%clk 00:15:30]} 10.
bxc4 {[%emt 00:00:02] [%clk 00:15:40]} Nc6 {[%emt 00:00:03] [%clk 00:15:37]} 11.
Qe2 {[%emt 00:00:05] [%clk 00:15:45]} Qd7 {[%emt 00:02:50] [%clk 00:12:57]} 12.
Rfd1 {[%emt 00:00:33] [%clk 00:15:21]} Rfd8 {[%emt 00:00:04] [%clk 00:13:03]}
13. d3 {[%emt 00:00:02] [%clk 00:15:30]} h6 {[%emt 00:01:31] [%clk 00:11:42]}
14. Rab1 {[%emt 00:00:13] [%clk 00:15:26]} Rac8 {[%emt 00:01:15] [%clk
00:10:38]} 15. Ba1 {[%emt 00:00:14] [%clk 00:15:22]} Qc7 {[%emt 00:03:45] [%clk
00:07:03]} 16. Ne1 {[%emt 00:00:10] [%clk 00:15:21]} Na5 {[%emt 00:01:06] [%clk
00:06:08]} 17. Nb5 {[%emt 00:00:38] [%clk 00:14:52]} Qb8 {[%emt 00:00:06] [%clk
00:06:12]} 18. f4 {[%emt 00:00:02] [%clk 00:15:00]} Bxg2 {[%emt 00:00:09] [%clk
00:06:13]} 19. Qxg2 {[%emt 00:00:04] [%clk 00:15:06]} Rd7 {[%emt 00:00:15] [%clk
00:06:08]} 20. Nf3 {[%emt 00:00:48] [%clk 00:14:28]} Ng4 {[%emt 00:00:47] [%clk
00:05:31]} 21. Qe2 {[%emt 00:00:38] [%clk 00:14:00]} Bf6 {[%emt 00:00:07] [%clk
00:05:35]} 22. Bc3 {[%emt 00:04:47] [%clk 00:09:23]} Bxc3 {[%emt 00:00:15] [%clk
00:05:30]} 23. Nxc3 {[%emt 00:00:02] [%clk 00:09:31]} Nc6 {[%emt 00:00:21] [%clk
00:05:18]} 24. Ne4 {[%emt 00:00:54] [%clk 00:08:48]} f5 {[%emt 00:00:04] [%clk
00:05:24]} 25. Nxc5 {[%emt 00:00:03] [%clk 00:08:55]} Re7 {[%emt 00:01:01] [%clk
00:04:33]} 26. h3 {[%emt 00:03:47] [%clk 00:05:18]} Nf6 {[%emt 00:00:04] [%clk
00:04:39]} 27. d4 {[%emt 00:00:07] [%clk 00:05:20]} Na5 {[%emt 00:01:07] [%clk
00:03:43]} 28. Ne5 {[%emt 00:03:53] [%clk 00:01:37]} Qc7 {[%emt 00:00:32] [%clk
00:03:20]} 29. Ncd3 {[%emt 00:01:12] [%clk 00:00:35]} Ne4 {[%emt 00:00:02] [%clk
00:03:28]} 30. Qe1 {[%emt 00:00:01] [%clk 00:00:44]} Qb7 {[%emt 00:03:15] [%clk
00:00:23]} 31. c5 {[%emt 00:00:08] [%clk 00:00:46]} Qd5 {[%emt 00:00:13] [%clk
00:00:22]} 32. Nb4 {[%emt 00:00:19] [%clk 00:00:35]} Qd8 {[%emt 00:00:02] [%clk
00:00:30]} 33. c6 {[%emt 00:00:08] [%clk 00:00:38]} Rec7 {[%emt 00:00:21] [%clk
00:00:19]} 34. Rdc1 {[%emt 00:00:18] [%clk 00:00:29]} Qd6 {[%emt 00:00:02] [%clk
00:00:28]} 35. Rc2 {[%emt 00:00:14] [%clk 00:00:25]} b5 {[%emt 00:00:21] [%clk
00:00:18]} 36. Na6 {[%emt 00:00:18] [%clk 00:00:17]} Rxc6 {[%emt 00:00:12] [%clk
00:00:15]} 37. Nxc6 {[%emt 00:00:02] [%clk 00:00:25]} Rxc6 {[%emt 00:00:02]
[%clk 00:00:23]} 38. Rxc6 {[%emt 00:00:12] [%clk 00:00:23]} Nxc6 {[%emt
00:00:02] [%clk 00:00:31]} 39. Nb4 {[%emt 00:00:12] [%clk 00:00:20]} Nxb4 {[%emt
00:00:26] [%clk 00:00:16]} 40. Qxb4 {[%emt 00:00:13] [%clk 00:00:17]} Qc6 {[%emt
00:00:01] [%clk 00:00:25]} 41. Qxb5 {[%emt 00:00:03] [%clk 00:00:24]} Qc2 {[%emt
00:00:20] [%clk 00:00:15]} 42. Qb2 {[%emt 00:00:03] [%clk 00:00:30]} Qd3 {[%emt
00:00:02] [%clk 00:00:23]} 43. Qb3 {[%emt 00:00:13] [%clk 00:00:27]} Nc3 {[%emt
00:00:10] [%clk 00:00:24]} 44. Qxe6+ {[%emt 00:00:17] [%clk 00:00:19]} Kh7
{[%emt 00:00:02] [%clk 00:00:33]} 45. Rf1 {[%emt 00:00:17] [%clk 00:00:12]} Ne2+
{[%emt 00:00:29] [%clk 00:00:14]} 46. Kg2 {[%emt 00:00:07] [%clk 00:00:14]} Nxg3
{[%emt 00:00:06] [%clk 00:00:19]} 47. Rf2 {[%emt 00:00:08] [%clk 00:00:16]} Ne2
{[%emt 00:00:09] [%clk 00:00:20]} 48. Kh2 {[%emt 00:00:13] [%clk 00:00:13]} Nc3
{[%emt 00:00:19] [%clk 00:00:11]} 49. Rg2 {[%emt 00:00:02] [%clk 00:00:20]} 1-0

[Site "Europe Echecs"]

[Event "Championnat d'Europe Rapide"]
[Date "2024.12.07"]
[White "Todorovic, Goran N"]
[Black "Motylev, Alexander"]
[WhiteElo "2256"]
[BlackElo "2596"]
[Round "2.7"]
[Result "0-1"]
[TimeControl "900+10"]

1. Nf3 {[%emt 00:00:02] [%clk 00:15:18]} Nf6 {[%emt 00:00:13] [%clk 00:15:07]}
2. c4 {[%emt 00:00:03] [%clk 00:15:24]} c6 {[%emt 00:00:04] [%clk 00:15:14]} 3.
g3 {[%emt 00:00:04] [%clk 00:15:30]} d5 {[%emt 00:00:02] [%clk 00:15:22]} 4. Bg2
{[%emt 00:00:03] [%clk 00:15:37]} e6 {[%emt 00:00:39] [%clk 00:14:53]} 5. b3
{[%emt 00:00:07] [%clk 00:15:40]} Bd6 {[%emt 00:00:03] [%clk 00:15:01]} 6. Bb2
{[%emt 00:00:01] [%clk 00:15:47]} Nbd7 {[%emt 00:00:02] [%clk 00:15:10]} 7. Nc3
{[%emt 00:01:13] [%clk 00:14:44]} O-O {[%emt 00:01:29] [%clk 00:13:52]} 8. O-O
{[%emt 00:00:06] [%clk 00:14:47]} dxc4 {[%emt 00:00:10] [%clk 00:13:52]} 9. bxc4
{[%emt 00:00:03] [%clk 00:14:54]} e5 {[%clk 00:14:01]} 10. d3 {[%emt 00:00:21]
[%clk 00:14:44]} Re8 {[%emt 00:00:14] [%clk 00:13:58]} 11. Qc2 {[%emt 00:00:43]
[%clk 00:14:10]} Nc5 {[%emt 00:00:04] [%clk 00:14:04]} 12. Nd2 {[%emt 00:01:08]
[%clk 00:13:11]} Bf5 {[%emt 00:00:13] [%clk 00:14:02]} 13. Ba3 {[%emt 00:01:46]
[%clk 00:11:36]} e4 {[%emt 00:03:22] [%clk 00:10:50]} 14. dxe4 {[%emt 00:07:25]
[%clk 00:04:20]} Ncxe4 {[%emt 00:01:27] [%clk 00:09:34]} 15. Ndxe4 {[%emt
00:01:15] [%clk 00:03:15]} Nxe4 {[%emt 00:00:34] [%clk 00:09:10]} 16. Bxe4
{[%emt 00:01:15] [%clk 00:02:10]} Bxe4 {[%emt 00:00:14] [%clk 00:09:06]} 17.
Nxe4 {[%emt 00:00:04] [%clk 00:02:16]} Bxa3 {[%emt 00:00:03] [%clk 00:09:13]}
18. Rfd1 {[%emt 00:01:08]} Qe7 {[%emt 00:00:13] [%clk 00:09:08]} 19. Nc3 {[%emt
00:00:01] [%clk 00:01:28]} Bc5 {[%emt 00:00:26] [%clk 00:08:53]} 20. e3 {[%emt
00:00:25] [%clk 00:01:13]} h5 {[%emt 00:00:14] [%clk 00:08:49]} 21. Na4 {[%emt
00:00:37] [%clk 00:00:45]} Bd6 {[%emt 00:00:20] [%clk 00:08:40]} 22. Rab1 {[%emt
00:00:05] [%clk 00:00:50]} h4 {[%emt 00:00:29] [%clk 00:08:22]} 23. Qf5 {[%emt
00:00:04] [%clk 00:00:55]} Rad8 {[%emt 00:01:01] [%clk 00:07:32]} 24. Nc3 {[%emt
00:00:22] [%clk 00:00:42]} hxg3 {[%emt 00:01:29] [%clk 00:06:13]} 25. hxg3
{[%emt 00:00:01] [%clk 00:00:51]} Bxg3 {[%emt 00:00:08]} 26. Rxd8 {[%emt
00:00:01] [%clk 00:00:57]} Rxd8 {[%emt 00:00:33] [%clk 00:05:56]} 27. Ne4 {[%emt
00:00:04] [%clk 00:01:02]} Be5 {[%emt 00:01:53] [%clk 00:04:13]} 28. Kg2 {[%emt
00:00:02] [%clk 00:01:10]} Re8 {[%emt 00:01:39] [%clk 00:02:44]} 29. Rd1 {[%emt
00:00:15] [%clk 00:01:06]} g6 {[%emt 00:00:16] [%clk 00:02:38]} 30. Qg4 {[%emt
00:00:27] [%clk 00:00:48]} Bg7 {[%emt 00:01:08] [%clk 00:01:41]} 31. Ng5 {[%emt
00:00:22] [%clk 00:00:35]} Rd8 {[%emt 00:00:16] [%clk 00:01:36]} 32. Rxd8+
{[%emt 00:00:09] [%clk 00:00:35]} Qxd8 {[%emt 00:00:01] [%clk 00:01:45]} 33. Qf4
{[%emt 00:00:08] [%clk 00:00:37]} Qe8 {[%emt 00:00:20] [%clk 00:01:35]} 34. Qc7
{[%emt 00:00:14] [%clk 00:00:33]} Bf6 {[%emt 00:00:24] [%clk 00:01:20]} 35. Nf3
{[%emt 00:00:10] [%clk 00:00:34]} Qe4 {[%emt 00:00:16] [%clk 00:01:14]} 36. Kg3
{[%emt 00:00:22] [%clk 00:00:23]} Be7 {[%emt 00:00:03] [%clk 00:01:21]} 37. Nd4
{[%emt 00:00:17] [%clk 00:00:16]} Bh4+ {[%emt 00:00:17] [%clk 00:01:13]} 38. Kh3
{[%emt 00:00:07] [%clk 00:00:18]} Bxf2 {[%emt 00:00:24] [%clk 00:01:00]} 0-1

[Site "Europe Echecs"]

[Event "Championnat d'Europe Rapide"]
[Date "2024.12.07"]
[White "Jobava, Baadur"]
[Black "Maier, Christian"]
[WhiteElo "2578"]
[BlackElo "2235"]
[Round "2.8"]
[Result "1-0"]
[TimeControl "900+10"]

1. d4 {[%emt 00:00:03] [%clk 00:15:16]} Nf6 {[%emt 00:00:05] [%clk 00:15:15]} 2.
Nc3 {[%emt 00:00:03] [%clk 00:15:24]} d5 {[%emt 00:00:41] [%clk 00:14:44]} 3.
Bf4 {[%emt 00:00:03] [%clk 00:15:31]} a6 {[%emt 00:00:14] [%clk 00:14:40]} 4. e3
{[%emt 00:00:03] [%clk 00:15:37]} Bf5 {[%emt 00:00:12] [%clk 00:14:38]} 5. f3
{[%emt 00:00:06] [%clk 00:15:41]} h5 {[%emt 00:00:06] [%clk 00:14:42]} 6. Bd3
{[%emt 00:00:05] [%clk 00:15:47]} Bxd3 {[%emt 00:00:11] [%clk 00:14:41]} 7. cxd3
{[%emt 00:00:03] [%clk 00:15:54]} e6 {[%emt 00:00:08] [%clk 00:14:42]} 8. Qb3
{[%emt 00:00:09] [%clk 00:15:55]} b6 {[%emt 00:00:32] [%clk 00:14:21]} 9. Nge2
{[%emt 00:00:05] [%clk 00:16:00]} c5 {[%emt 00:01:59] [%clk 00:12:32]} 10. Rc1
{[%emt 00:00:50] [%clk 00:15:20]} Nbd7 {[%emt 00:00:10] [%clk 00:12:33]} 11. O-O
{[%emt 00:00:22] [%clk 00:15:07]} Be7 {[%emt 00:00:05] [%clk 00:12:38]} 12. dxc5
{[%emt 00:00:35] [%clk 00:14:42]} e5 {[%emt 00:01:25] [%clk 00:11:23]} 13. Bg5
{[%emt 00:00:20] [%clk 00:14:32]} Nxc5 {[%emt 00:00:02] [%clk 00:11:31]} 14. Qd1
{[%emt 00:00:09] [%clk 00:14:32]} Ne6 {[%emt 00:00:03] [%clk 00:11:39]} 15. Bxf6
{[%emt 00:00:52]} Bxf6 {[%emt 00:00:02] [%clk 00:11:41]} 16. Qb3 {[%emt
00:00:09] [%clk 00:13:56]} d4 {[%emt 00:00:11] [%clk 00:11:40]} 17. Nd5 {[%emt
00:00:19] [%clk 00:13:48]} dxe3 {[%emt 00:01:13] [%clk 00:10:37]} 18. Nxb6
{[%emt 00:00:07] [%clk 00:13:51]} O-O {[%emt 00:00:16] [%clk 00:10:30]} 19. Nxa8
{[%emt 00:00:03] [%clk 00:13:58]} Qxa8 {[%emt 00:00:02] [%clk 00:10:39]} 20. Rc4
{[%emt 00:01:55] [%clk 00:12:13]} Rd8 {[%emt 00:01:06] [%clk 00:09:43]} 21. Rfc1
{[%emt 00:00:16] [%clk 00:12:07]} g6 {[%emt 00:00:12] [%clk 00:09:40]} 22. Qb6
{[%emt 00:00:16] [%clk 00:12:01]} Kg7 {[%emt 00:00:19] [%clk 00:09:31]} 23. Qxe3
{[%emt 00:00:04] [%clk 00:12:07]} Qd5 {[%emt 00:00:12] [%clk 00:09:29]} 24. Nc3
{[%emt 00:00:10] [%clk 00:12:07]} Qa5 {[%emt 00:01:14] [%clk 00:08:24]} 25. Ra4
{[%emt 00:03:42] [%clk 00:08:35]} Qc5 {[%emt 00:01:09] [%clk 00:07:25]} 26. Qxc5
{[%emt 00:00:20] [%clk 00:08:25]} Nxc5 {[%emt 00:00:02] [%clk 00:07:33]} 27. Ra5
{[%emt 00:00:12] [%clk 00:08:24]} Nxd3 {[%emt 00:00:41] [%clk 00:07:02]} 28. Rd1
{[%emt 00:00:02] [%clk 00:08:32]} e4 {[%emt 00:00:07] [%clk 00:07:05]} 29. Rd5
{[%emt 00:00:56] [%clk 00:07:46]} Rxd5 {[%emt 00:01:01] [%clk 00:06:15]} 30.
Nxd5 {[%emt 00:00:02] [%clk 00:07:53]} Nxb2 {[%emt 00:00:01] [%clk 00:06:23]}
31. Rb1 {[%emt 00:00:34] [%clk 00:07:29]} Bd4+ {[%emt 00:00:10] [%clk 00:06:24]}
32. Kf1 {[%clk 00:07:38]} f5 {[%emt 00:00:49] [%clk 00:05:45]} 33. Ke2 {[%emt
00:00:24] [%clk 00:07:24]} a5 {[%emt 00:00:28] [%clk 00:05:28]} 34. fxe4 {[%emt
00:00:24] [%clk 00:07:09]} fxe4 {[%emt 00:00:03] [%clk 00:05:35]} 35. Rc1 {[%emt
00:00:10] [%clk 00:07:09]} a4 {[%emt 00:01:09] [%clk 00:04:36]} 36. Rc7+ {[%emt
00:00:08] [%clk 00:07:10]} Kh6 {[%emt 00:00:05] [%clk 00:04:42]} 37. Re7 {[%emt
00:00:13] [%clk 00:07:06]} 1-0

[Site "Europe Echecs"]

[Event "Championnat d'Europe Rapide"]
[Date "2024.12.07"]
[White "Vyval, Volodymyr"]
[Black "Ragger, Markus"]
[WhiteElo "2269"]
[BlackElo "2577"]
[Round "2.9"]
[Result "1/2-1/2"]
[TimeControl "900+10"]

1. e4 {[%emt 00:04:07] [%clk 00:15:18]} e5 {[%emt 00:00:01] [%clk 00:15:19]} 2.
Nf3 {[%emt 00:00:06] [%clk 00:15:24]} Nc6 {[%emt 00:00:02]} 3. d4 {[%clk
00:15:31]} exd4 {[%clk 00:15:36]} 4. Nxd4 {[%emt 00:00:02] [%clk 00:15:39]} Nf6
{[%emt 00:00:02] [%clk 00:15:44]} 5. Nxc6 {[%emt 00:00:27] [%clk 00:15:22]} bxc6
{[%emt 00:00:02] [%clk 00:15:52]} 6. Bd3 {[%emt 00:00:05] [%clk 00:15:26]} d5
{[%emt 00:00:10] [%clk 00:15:53]} 7. O-O {[%emt 00:00:04] [%clk 00:15:31]} dxe4
{[%emt 00:00:53] [%clk 00:15:10]} 8. Qe1 {[%emt 00:00:02] [%clk 00:15:39]} Be7
{[%emt 00:00:31] [%clk 00:14:50]} 9. Bxe4 {[%emt 00:00:04] [%clk 00:15:45]} Nxe4
{[%emt 00:00:02] [%clk 00:14:58]} 10. Qxe4 {[%emt 00:00:01] [%clk 00:15:53]} Qd5
{[%emt 00:00:03] [%clk 00:15:06]} 11. Nc3 {[%emt 00:00:18] [%clk 00:15:45]} Qxe4
{[%emt 00:00:05] [%clk 00:15:11]} 12. Nxe4 {[%clk 00:15:54]} Bf5 {[%emt
00:00:21] [%clk 00:15:00]} 13. Re1 {[%emt 00:00:05] [%clk 00:15:59]} O-O-O
{[%emt 00:00:14] [%clk 00:14:56]} 14. Bg5 {[%emt 00:04:28] [%clk 00:11:40]} Bxg5
{[%emt 00:02:27] [%clk 00:12:39]} 15. Nxg5 {[%emt 00:00:02] [%clk 00:11:49]} Rd2
{[%emt 00:00:05] [%clk 00:12:45]} 16. Nxf7 {[%emt 00:00:46] [%clk 00:11:12]} Rf8
{[%emt 00:00:08] [%clk 00:12:46]} 17. Ne5 {[%emt 00:00:15] [%clk 00:11:08]} Rxc2
{[%emt 00:00:12] [%clk 00:12:43]} 18. Rac1 {[%emt 00:01:01] [%clk 00:10:17]}
Rxb2 {[%emt 00:00:35] [%clk 00:12:19]} 19. Nxc6 {[%emt 00:02:56] [%clk
00:07:31]} Bd7 {[%emt 00:00:19] [%clk 00:12:10]} 20. f3 {[%emt 00:01:49] [%clk
00:05:53]} Re8 {[%emt 00:02:59] [%clk 00:09:21]} 21. Ne5 {[%emt 00:03:02] [%clk
00:03:00]} Rxa2 {[%emt 00:00:12] [%clk 00:09:19]} 22. Rc5 {[%emt 00:00:05] [%clk
00:03:05]} Re7 {[%emt 00:00:25] [%clk 00:09:04]} 23. Rec1 {[%clk 00:03:14]} Be8
{[%emt 00:00:27] [%clk 00:08:47]} 24. h3 {[%emt 00:00:04] [%clk 00:03:20]} h6
{[%emt 00:00:49] [%clk 00:08:08]} 25. Nd3 {[%emt 00:00:42] [%clk 00:02:47]} Rd2
{[%emt 00:01:52] [%clk 00:06:26]} 26. Nb4 {[%emt 00:00:19] [%clk 00:02:39]} Kd8
{[%emt 00:00:54] [%clk 00:05:41]} 27. Nd5 {[%emt 00:00:34] [%clk 00:02:16]} Re5
{[%emt 00:03:58] [%clk 00:01:53]} 28. Nxc7 {[%clk 00:02:25]} Rxc5 {[%emt
00:00:29] [%clk 00:01:34]} 29. Ne6+ {[%emt 00:00:04] [%clk 00:02:31]} Ke7 {[%emt
00:00:19] [%clk 00:01:25]} 30. Nxc5 {[%emt 00:00:03] [%clk 00:02:38]} Rd5 {[%emt
00:00:02] [%clk 00:01:33]} 31. Re1+ {[%emt 00:00:40] [%clk 00:02:08]} Kf7 {[%emt
00:00:02] [%clk 00:01:41]} 32. Ne6 {[%emt 00:00:20] [%clk 00:01:58]} Bd7 {[%emt
00:00:10] [%clk 00:01:42]} 33. Nf4 {[%emt 00:00:08] [%clk 00:01:59]} Rd4 {[%emt
00:00:13] [%clk 00:01:39]} 34. Ne2 {[%emt 00:00:14] [%clk 00:01:55]} Rd2 {[%emt
00:00:58] [%clk 00:00:51]} 35. Nc3 {[%emt 00:00:07] [%clk 00:01:58]} a5 {[%emt
00:00:02] [%clk 00:00:59]} 36. Ra1 {[%emt 00:00:48] [%clk 00:01:20]} Rc2 {[%emt
00:00:05] [%clk 00:01:05]} 37. Ra3 {[%emt 00:00:17] [%clk 00:01:12]} Bc6 {[%emt
00:00:11] [%clk 00:01:04]} 38. Ne4 {[%emt 00:00:12] [%clk 00:01:10]} Bxe4 {[%emt
00:00:29] [%clk 00:00:46]} 39. fxe4 {[%clk 00:01:19]} Rc5 {[%emt 00:00:02] [%clk
00:00:54]} 40. Kf2 {[%emt 00:00:15] [%clk 00:01:14]} Ke6 {[%emt 00:00:03] [%clk
00:01:01]} 41. Ke3 {[%emt 00:00:03] [%clk 00:01:22]} Ke5 {[%emt 00:00:02] [%clk
00:01:08]} 42. h4 {[%emt 00:00:21] [%clk 00:01:11]} Rb5 {[%emt 00:00:07] [%clk
00:01:11]} 43. g3 {[%emt 00:00:07] [%clk 00:01:14]} g5 {[%emt 00:00:15] [%clk
00:01:06]} 44. hxg5 {[%emt 00:00:01] [%clk 00:01:22]} hxg5 {[%clk 00:01:16]} 45.
Kf3 {[%emt 00:00:15] [%clk 00:01:17]} Kd6 {[%emt 00:00:22] [%clk 00:01:02]} 46.
Kg4 {[%emt 00:00:30] [%clk 00:00:59]} Re5 {[%emt 00:00:18] [%clk 00:00:54]} 47.
Kh5 {[%emt 00:00:26] [%clk 00:00:43]} Ke6 {[%emt 00:00:44] [%clk 00:00:21]} 48.
g4 {[%emt 00:00:06] [%clk 00:00:46]} Kf6 {[%emt 00:00:08] [%clk 00:00:23]} 49.
Rf3+ {[%emt 00:00:07] [%clk 00:00:50]} Kg7 {[%emt 00:00:11] [%clk 00:00:21]} 50.
Rb3 {[%emt 00:00:15] [%clk 00:00:44]} a4 {[%emt 00:00:04] [%clk 00:00:28]} 51.
Rb7+ {[%emt 00:00:02] [%clk 00:00:52]} Kf6 {[%emt 00:00:02] [%clk 00:00:37]} 52.
Ra7 {[%emt 00:00:08] [%clk 00:00:53]} Rxe4 {[%emt 00:00:29] [%clk 00:00:18]} 53.
Ra6+ {[%emt 00:00:05] [%clk 00:00:59]} Kg7 {[%emt 00:00:06] [%clk 00:00:21]} 54.
Kxg5 {[%emt 00:00:08] [%clk 00:00:50]} 1/2-1/2

[Site "Europe Echecs"]

[Event "Championnat d'Europe Rapide"]
[Date "2024.12.07"]
[White "Safarli, Eltaj"]
[Black "Guid, Matej"]
[WhiteElo "2610"]
[BlackElo "2266"]
[Round "2.10"]
[Result "1-0"]
[TimeControl "900+10"]

1. e4 {[%emt 00:00:04] [%clk 00:15:18]} e6 {[%emt 00:00:11] [%clk 00:15:00]} 2.
d4 {[%emt 00:00:08] [%clk 00:15:26]} d5 {[%emt 00:00:02] [%clk 00:15:09]} 3. Nd2
{[%emt 00:00:02] [%clk 00:15:34]} dxe4 {[%emt 00:00:02] [%clk 00:15:17]} 4. Nxe4
{[%emt 00:00:01] [%clk 00:15:42]} Nd7 {[%clk 00:15:27]} 5. g3 {[%emt 00:00:38]
[%clk 00:15:15]} b6 {[%emt 00:00:06] [%clk 00:15:31]} 6. Bg2 {[%emt 00:00:06]
[%clk 00:15:19]} Rb8 {[%emt 00:00:02] [%clk 00:15:39]} 7. Nf3 {[%emt 00:00:38]
[%clk 00:14:51]} Bb7 {[%emt 00:00:23] [%clk 00:15:26]} 8. Qe2 {[%emt 00:00:09]
[%clk 00:14:52]} Ngf6 {[%emt 00:00:08] [%clk 00:15:27]} 9. Nxf6+ {[%emt
00:00:03] [%clk 00:15:00]} Nxf6 {[%emt 00:00:11] [%clk 00:15:27]} 10. O-O {[%emt
00:00:03] [%clk 00:15:05]} Bd6 {[%emt 00:00:39] [%clk 00:14:58]} 11. Rd1 {[%emt
00:00:54] [%clk 00:14:22]} O-O {[%emt 00:00:13] [%clk 00:14:54]} 12. Ne5 {[%emt
00:00:13] [%clk 00:14:19]} Bxg2 {[%emt 00:02:08] [%clk 00:12:57]} 13. Kxg2
{[%emt 00:00:01] [%clk 00:14:27]} Bxe5 {[%emt 00:00:07] [%clk 00:13:01]} 14.
dxe5 {[%emt 00:00:03] [%clk 00:14:35]} Nd7 {[%emt 00:00:05] [%clk 00:13:05]} 15.
h4 {[%emt 00:01:21] [%clk 00:13:24]} Qc8 {[%emt 00:00:42] [%clk 00:12:34]} 16.
Rd4 {[%emt 00:01:08] [%clk 00:12:26]} Qb7+ {[%emt 00:00:42] [%clk 00:12:01]} 17.
Kg1 {[%emt 00:00:04] [%clk 00:12:31]} Nc5 {[%emt 00:00:07] [%clk 00:12:04]} 18.
Bg5 {[%emt 00:00:53] [%clk 00:11:48]} h6 {[%emt 00:03:07] [%clk 00:09:07]} 19.
Be3 {[%emt 00:00:46] [%clk 00:11:12]} Rfd8 {[%emt 00:00:40] [%clk 00:08:38]} 20.
Rad1 {[%emt 00:00:09] [%clk 00:11:12]} Rd5 {[%emt 00:00:31] [%clk 00:08:17]} 21.
Qg4 {[%emt 00:02:42] [%clk 00:08:40]} Kf8 {[%emt 00:00:43] [%clk 00:07:44]} 22.
c4 {[%emt 00:00:30] [%clk 00:08:21]} Rxe5 {[%emt 00:02:17] [%clk 00:05:37]} 23.
b4 {[%emt 00:02:07] [%clk 00:06:24]} Re4 {[%emt 00:00:50] [%clk 00:04:56]} 24.
Rd8+ {[%emt 00:00:42] [%clk 00:05:53]} Rxd8 {[%emt 00:00:11] [%clk 00:04:54]}
25. Rxd8+ {[%emt 00:00:04] [%clk 00:05:59]} Ke7 {[%emt 00:00:01] [%clk
00:05:01]} 26. Qd1 {[%emt 00:00:06] [%clk 00:06:06]} Rxe3 {[%emt 00:03:21] [%clk
00:01:50]} 27. fxe3 {[%emt 00:00:02] [%clk 00:06:14]} Ne4 {[%emt 00:00:06] [%clk
00:01:54]} 28. Qd7+ {[%emt 00:01:55] [%clk 00:04:30]} Kf6 {[%clk 00:02:02]} 29.
Qd4+ {[%emt 00:00:09] [%clk 00:04:31]} e5 {[%emt 00:01:22] [%clk 00:00:50]} 30.
Qd5 {[%emt 00:00:02] [%clk 00:04:38]} Qxd5 {[%emt 00:00:02] [%clk 00:00:58]} 31.
cxd5 {[%emt 00:00:02] [%clk 00:04:47]} Ke7 {[%emt 00:00:05] [%clk 00:01:02]} 32.
Ra8 {[%emt 00:00:15] [%clk 00:04:43]} Nxg3 {[%emt 00:00:03] [%clk 00:01:09]} 33.
Rxa7 {[%emt 00:00:03] [%clk 00:04:51]} Kd6 {[%clk 00:01:18]} 34. a4 {[%emt
00:00:06] [%clk 00:04:54]} Nf5 {[%emt 00:00:51] [%clk 00:00:37]} 35. Kf2 {[%emt
00:00:02] [%clk 00:05:03]} Nxh4 {[%emt 00:00:20] [%clk 00:00:26]} 36. a5 {[%emt
00:00:02] [%clk 00:05:11]} bxa5 {[%clk 00:00:35]} 37. bxa5 {[%clk 00:05:21]} Nf5
{[%emt 00:00:06] [%clk 00:00:39]} 38. a6 {[%emt 00:00:06] [%clk 00:05:25]} Ne7
{[%emt 00:00:15] [%clk 00:00:33]} 39. Ra8 {[%emt 00:00:07] [%clk 00:05:29]} Nxd5
{[%emt 00:00:04] [%clk 00:00:40]} 40. Rd8+ {[%emt 00:00:02] [%clk 00:05:36]} 1-0

[Site "Europe Echecs"]